Cogmind - Beta 13 @@@ ROGUE MODE // 2024.07.30 @ 23:19:46 Player: jagoly Result: Destroyed by B-75 Beast with Magnetic Acceleration Cannon Performance ------------- Evolutions (2) 1000 Regions Visited (6) 1200 Robots Destroyed (122) 610 Value Destroyed (4246) 4246 Prototype IDs (27) 540 Alien Tech Used (0) 0 Bonus (774) 774 TOTAL SCORE: 8370 Bonus ------- High Alert Combat Kills 574 Entered Garrisons 200 Cogmind --------- Core Integrity 0/550 Matter 290/300 Energy 251/265 System Corruption 0% Temperature Cool (80) Movement Treading (232) Ox1 Location -8/Garrison Parts ------- > --- POWER (1) -------- Improved Ion Engine > --- PROPULSION (3) --- Light Treads Advanced Treads > --- UTILITY (5) ------ Improved Heat Sink High-capacity Storage Unit Advanced Targeting Computer Core Analyzer Hacking Suite > --- WEAPON (2) ------- Advanced Beam Rifle Advanced Beam Rifle > --- INVENTORY (20) --- Nuclear Core Improved Titanium Leg Armored Wheel Advanced Heat Sink High-capacity Storage Unit Huge Storage Unit Machine Analyzer Improved Sensor Array Improved Signal Interpreter Light Armor Plating Enhanced Autogun Gauss Rifle Flak Cannon Rocket Launcher Improved Datajack Great Maul Peak State ------------ > --- POWER ------------ Nuclear Core > --- PROPULSION ------- Improved Titanium Leg Improved Titanium Leg Improved Titanium Leg > --- UTILITY ---------- Advanced Heat Sink High-capacity Storage Unit Advanced Targeting Computer Hardlight Generator Hacking Suite > --- WEAPON ----------- Advanced Beam Rifle Advanced Beam Cannon > --- INVENTORY -------- Deuterium Engine Nuclear Core Light Treads Armored Treads Advanced Treads Improved Titanium Leg Improved Heat Sink Advanced Heat Sink Huge Storage Unit Machine Analyzer Machine Analyzer Improved Sensor Array Improved Signal Interpreter Advanced Beam Rifle Advanced Beam Rifle Enhanced Autogun Flak Cannon Rocket Launcher Improved Datajack Great Maul [Rating: 43] Favorites ----------- Power Improved Ion Engine Engine Improved Ion Engine Power Core Nuclear Core Propulsion Light Treads Treads Light Treads Leg Improved Titanium Leg Utility Improved Heat Sink Device Improved Heat Sink Storage Large Storage Unit Processor Advanced Targeting Computer Hackware Hacking Suite Protection Light Armor Plating Weapon Advanced Beam Rifle Energy Gun Advanced Beam Rifle Energy Cannon Beam Cannon Ballistic Gun Assault Rifle Launcher Rocket Launcher Impact Weapon Mace Special Melee Weapon Datajack Build | -11 -10 -10 -10 -9 -8 -8 ------- Run | Yrd Mat Min Exi Min Mat Gar Slots Evolved 4 | . . . . . 4 . Power . | . . . . . . . Propulsion 1 | . . . . . 1 . Utility 3 | . . . . . 3 . Weapon . | . . . . . . . Parts Attached 92 | 6 19 9 3 . 38 17 Power 10 | 1 3 2 . . 2 2 Engine 9 | 1 3 2 . . 1 2 Core 1 | . . . . . 1 . Reactor . | . . . . . . . Propulsion 27 | 2 8 4 . . 8 5 Treads 15 | . 3 4 . . 4 4 Leg 12 | 2 5 . . . 4 1 Wheel . | . . . . . . . Hover . | . . . . . . . Flight . | . . . . . . . Utility 25 | 1 4 1 . . 13 6 Device 13 | . . 1 . . 8 4 Storage 4 | 1 2 . . . 1 . Processor 5 | . 2 . . . 1 2 Hackware 2 | . . . . . 2 . Protection 1 | . . . . . 1 . Artifact . | . . . . . . . Weapon 30 | 2 4 2 3 . 15 4 Energy Gun 18 | 1 2 2 1 . 9 3 Energy Cannon 6 | . 2 . . . 4 . Ballistic Gun 2 | 1 . . . . 1 . Ballistic Cannon . | . . . . . . . Launcher 2 | . . . . . 1 1 Special Weapon . | . . . . . . . Impact Weapon 1 | . . . 1 . . . Slashing Weapon . | . . . . . . . Piercing Weapon . | . . . . . . . Special Melee Weapon 1 | . . . 1 . . . Unidentified Prototypes 5 | . . . . . 5 . Parts Lost 13 | . . . . . 3 10 Power 2 | . . . . . 1 1 Propulsion 4 | . . . . . . 4 Utility 5 | . . . . . 2 3 Weapon 2 | . . . . . . 2 Highest Loss Streak 3 | . . . . . 2 3 To Critical Strikes . | . . . . . . . Average Slot Usage (%) 99 | . 99 100 100 100 99 96 Engine 9 | . 14 14 14 14 3 7 Core 1 | . . . . . 5 1 Treads 18 | . 18 28 28 28 6 19 Leg 9 | . 9 . . . 20 7 Device 10 | . . 12 14 14 14 9 Storage 11 | . 14 14 14 14 9 9 Processor 8 | . 13 1 . . 8 14 Hackware 4 | . . . . . 9 9 Energy Gun 9 | . 5 12 . 14 9 15 Energy Cannon 8 | . 8 14 14 14 8 2 Ballistic Gun 2 | . 14 1 . . . . Special Melee Weapon 1 | . . . 11 . . . Naked Turns . | . . . . . . . Heaviest Build 59 | 14 30 34 34 34 59 59 Greatest Support 62 | 20 40 40 40 40 60 62 Greatest Overweight (x) 2 | . . . . . 1 2 Average Overweight (x) . | . . . . . . . Largest Inventory Capacity 20 | 8 15 15 15 15 20 20 Average Capacity 16 | 7 13 15 15 15 18 20 Most Carried 20 | 3 15 15 15 15 20 20 Average Carried 15 | 2 12 14 15 15 17 17 Final Capacity 20 | 8 15 15 15 15 20 20 Final Carried 19 | 3 15 15 15 15 19 16 Class Distribution -------------------- 75% | Mutant 23% | Scavenger-Mutant Dominant Class ---------------- Mutant | -10/Materials Mutant | -10/Mines Mutant | -10/Exiles Scavenger-Mutant | -9/Mines Mutant | -8/Materials Mutant | -8/Garrison Resources | -11 -10 -10 -10 -9 -8 -8 ----------- Run | Yrd Mat Min Exi Min Mat Gar Matter Collected 1304 | 226 410 90 10 20 375 173 Remotely . | . . . . . . . Salvage Created 4592 | . 702 256 . 183 1980 1471 Parts 266 | . 64 15 . 15 110 62 Haulers Intercepted 7 | . 2 . . . 5 . Recyclers Shooed 3 | . 1 . . 1 1 . Parts Field Recycled . | . . . . . . . Retrieved Matter . | . . . . . . . Parts Self-Destructed . | . . . . . . . Prevented . | . . . . . . . Kills | -11 -10 -10 -10 -9 -8 -8 ------- Run | Yrd Mat Min Exi Min Mat Gar Combat Hostiles Destroyed 97 | . 16 7 . 7 32 35 Guns 61 | . 15 3 . 4 20 19 Cannons 27 | . 1 4 . 3 11 8 AOE 7 | . . . . . . 7 Classes Destroyed 14 | . 7 1 . . 2 4 Worker 2 | . 1 . . . 1 . Builder 1 | . 1 . . . . . Hauler 7 | . 2 . . . 5 . Recycler 3 | . . . . . 3 . Operator 4 | . 3 . . . 1 . Watcher 8 | . 3 . . . 5 . Swarmer 35 | . 6 3 . 4 10 12 Grunt 43 | . 10 2 . 3 13 15 Duelist 1 | . . . . . . 1 Protector 1 | . . . . . . 1 Sentry 11 | . . 2 . . 8 1 Demolisher 1 | . . . . . . 1 Specialist 2 | . . . . . . 2 Hunter 3 | . . . . . 1 2 Best Kill Streak 9 | . 9 3 . 4 4 8 Combat Bots Only 8 | . 7 3 . 4 4 8 Max Kills in Single Turn 4 | . 2 1 . 1 2 4 Gunslinging . | . . . . . . . Exploded 4 | . . . . . . 4 Melee . | . . . . . . . Uniques/NPCs Destroyed . | . . . . . . . Combat | -11 -10 -10 -10 -9 -8 -8 -------- Run | Yrd Mat Min Exi Min Mat Gar Hostile Shots Fired 410 | . 62 32 . 23 136 157 Missed 117 | . 15 8 . 5 42 47 Damage Taken 4103 | . 498 288 . 188 1159 1970 Core 696 | . 71 36 . 24 265 300 Absorbed by Shields 184 | . . . . . 148 36 Regen/Repaired (Parts) 159 | . . . . . 159 . Core Remaining (%) 73 | 100 . . . 47 . . Volleys Fired 349 | . 62 16 . 16 137 118 Largest 2 | . 2 2 . 2 2 2 Hottest 129 | . 80 116 . 116 129 129 Shots Fired 676 | . 124 32 . 32 266 222 Gun 466 | . 114 16 . 16 149 171 Cannon 207 | . 10 16 . 16 117 48 Launcher 3 | . . . . . . 3 Special . | . . . . . . . Kinetic 62 | . 62 . . . . . Thermal 611 | . 62 32 . 32 266 219 Explosive 3 | . . . . . . 3 Electromagnetic . | . . . . . . . Robot Hit Streak 29 | . 11 10 . 13 17 29 Robot Miss Streak 7 | . 4 2 . 3 7 4 Penetration Max . | . . . . . . . Secondary Targets 1 | . . . . . 1 . Max Gunslinging Chain 1 | . . . . . 1 . Shots Hit Robots 453 | . 82 22 4 17 167 161 Core Hits 190 | . 38 10 . 8 67 67 Critical Kills 4 | . 2 . . . 1 1 Critical Parts Destroyed . | . . . . . . . Critical Strikes 33 | . 5 2 . 3 9 14 Burn 29 | . 3 2 . 3 8 13 Meltdown 2 | . . . . . 1 1 Destroy 2 | . 2 . . . . . Melee Attacks 6 | . . . 6 . . . Impact 2 | . . . 2 . . . Slashing . | . . . . . . . Piercing . | . . . . . . . Sneak Attacks 4 | . . . 4 . . . Combat Hostiles . | . . . . . . . Follow-up Attacks . | . . . . . . . Damage Inflicted 9005 | . 1198 354 . 285 3434 3734 Guns 5837 | . 1033 161 . 129 1968 2546 Cannons 2693 | . 158 193 . 156 1466 720 Explosions 468 | . . . . . . 468 Melee . | . . . . . . . Ramming 7 | . 7 . . . . . Kinetic 558 | . 558 . . . . . Thermal 7972 | . 633 354 . 285 3434 3266 Explosive 468 | . . . . . . 468 Electromagnetic . | . . . . . . . Impact . | . . . . . . . Slashing . | . . . . . . . Piercing . | . . . . . . . Highest Corruption . | . . . . . . . Average Corruption . | . . . . . . . Corruption Purged . | . . . . . . . Corruption Blocked . | . . . . . . . Overload Shots . | . . . . . . . Overflow Damage 79 | . . . . . 32 47 Projectiles 32 | . . . . . 32 . Explosions 47 | . . . . . . 47 Melee . | . . . . . . . Knockbacks . | . . . . . . . Impact . | . . . . . . . Kinetic . | . . . . . . . Secondary . | . . . . . . . Self-Inflicted Damage . | . . . . . . . Shots . | . . . . . . . Rammed 1 | . 1 . . . . . Targets Rammed 1 | . 1 . . . . . Kicked . | . . . . . . . Crushed . | . . . . . . . Highest Temperature 300 | . 217 96 . 162 300 197 Average Temperature 52 | . 72 42 . 67 54 29 Received Heat Transfer 1377 | . 231 78 . 72 506 490 Siege Activations . | . . . . . . . Robots Corrupted . | . . . . . . . Combat Hostiles . | . . . . . . . Parts Fried . | . . . . . . . Impact Corruptions . | . . . . . . . Robots Melted 4 | . . . . . 1 3 Combat Hostiles 2 | . . . . . 1 1 Parts Melted 36 | . . 2 . 2 18 14 Heat Transferred 17566 | . 1776 962 . 888 7067 6873 Parts Sabotaged . | . . . . . . . Parts Stolen . | . . . . . . . Parts Stripped . | . . . . . . . Power Chain Reactions . | . . . . . . . Alert | -11 -10 -10 -10 -9 -8 -8 ------- Run | Yrd Mat Min Exi Min Mat Gar Peak Influence 1501 | . 356 105 . 175 521 1501 Initial 338 | . . 2 . . . 338 Average 330 | . 70 28 . 63 233 975 Maximum Alert Level 4 | . 1 . . . 2 4 Low Security (%) 54 | 100 85 100 . 100 42 . Level 1 18 | . 14 . . . 42 6 Level 2 7 | . . . . . 15 12 Level 3 9 | . . . . . . 41 Level 4 9 | . . . . . . 40 Level 5 . | . . . . . . . High Security . | . . . . . . . Max Security . | . . . . . . . Squads Dispatched 7 | . 4 1 . . 2 . Investigation 2 | . 1 1 . . . . Extermination . | . . . . . . . Reinforcement 5 | . 3 . . . 2 . Assault . | . . . . . . . Garrison . | . . . . . . . Intercept . | . . . . . . . Searches Triggered . | . . . . . . . Construction Impeded . | . . . . . . . Haulers Reinforced . | . . . . . . . Active Scanning Responses . | . . . . . . . Cargo Convoy Interrupts . | . . . . . . . Stealth | -11 -10 -10 -10 -9 -8 -8 --------- Run | Yrd Mat Min Exi Min Mat Gar Distress Signals . | . . . . . . . Communications Jammed . | . . . . . . . Distress Signals . | . . . . . . . Times Spotted 132 | . 24 8 . 8 54 38 Peak Tracking Total 7 | . 4 3 . 4 4 7 Tactical Retreats 16 | . 1 1 . 1 8 5 Traps | -11 -10 -10 -10 -9 -8 -8 ------- Run | Yrd Mat Min Exi Min Mat Gar Traps Triggered 2 | . 2 . . . . . Indirectly . | . . . . . . . Trap Hack Attempts . | . . . . . . . Triggered . | . . . . . . . Disarmed . | . . . . . . . Reprogrammed . | . . . . . . . Reused . | . . . . . . . Traps Extracted . | . . . . . . . Installed . | . . . . . . . Triggered . | . . . . . . . Machines | -11 -10 -10 -10 -9 -8 -8 ---------- Run | Yrd Mat Min Exi Min Mat Gar Machines Disabled 9 | . . . . . 3 6 Max in Single Turn 1 | . . . . . 1 1 Garrison Relay 4 | . . . . . . 4 Machines Repaired . | . . . . . . . Machines Dismantled . | . . . . . . . Machines Sabotaged . | . . . . . . . Overloaded Fab Kills . | . . . . . . . Hacking | -11 -10 -10 -10 -9 -8 -8 --------- Run | Yrd Mat Min Exi Min Mat Gar Machines Accessed 22 | . 6 1 1 . 11 3 Terminals 15 | . 5 . . . 7 3 Fabricators . | . . . . . . . Repair Stations 2 | . . . . . 2 . Recycling Units 2 | . 1 . . . 1 . Scanalyzers . | . . . . . . . Garrison Access 1 | . . . . . 1 . Total Hacks 73 | . 20 1 4 . 41 7 Successful 38 | . 6 1 4 . 25 2 Failed 35 | . 14 . . . 16 5 Catastrophic 7 | . 3 . . . 2 2 Database Lockouts . | . . . . . . . Manual 22 | . 3 . . . 17 2 Terminals 56 | . 17 . . . 32 7 Fabricators . | . . . . . . . Repair Stations 6 | . . . . . 6 . Recycling Units 5 | . 3 . . . 2 . Scanalyzers . | . . . . . . . Garrison Access 1 | . . . . . 1 . Terminal Hacks 30 | . 6 1 4 . 17 2 Record 4 | . . . 4 . . . Prototype ID Bank 5 | . 1 . . . 4 . Open Door 1 | . . 1 . . . . Branch Access Points 2 | . 1 . . . 1 . Emergency Access Points 1 | . . . . . 1 . Terminal Index 2 | . 1 . . . 1 . Unreport Threat 3 | . 1 . . . 2 . Locate Traps 4 | . 1 . . . 3 . Dispatch Records 1 | . . . . . 1 . Security Status 1 | . . . . . 1 . Hauler Manifests 2 | . 1 . . . 1 . Registered Components 1 | . . . . . 1 . Registered Prototypes 1 | . . . . . 1 . Patrol Navigation 1 | . . . . . . 1 Security Stations 1 | . . . . . . 1 Fabricator Hacks . | . . . . . . . Repair Station Hacks 4 | . . . . . 4 . Scan Component 2 | . . . . . 2 . Repair 2 | . . . . . 2 . Recycling Unit Hacks 1 | . . . . . 1 . Retrieve Components 1 | . . . . . 1 . Scanalyzer . | . . . . . . . Garrison Access Hacks 1 | . . . . . 1 . Unlock Access 1 | . . . . . 1 . Unauthorized Hacks 2 | . . . . . 2 . Terminals . | . . . . . . . Fabricators . | . . . . . . . Repair Stations 1 | . . . . . 1 . Mechanics 1 | . . . . . 1 . Recycling Units 1 | . . . . . 1 . Mask 1 | . . . . . 1 . Scanalyzers . | . . . . . . . Garrison Access . | . . . . . . . Data Cores Recovered . | . . . . . . . Used . | . . . . . . . Hacking Detections 19 | . 6 . . . 10 3 Full Trace Events . | . . . . . . . Feedback Events . | . . . . . . . Feedback Blocked . | . . . . . . . Robot Schematics Acquired . | . . . . . . . Robots Built . | . . . . . . . Authchips . | . . . . . . . Time . | . . . . . . . Total Robot Build Rating . | . . . . . . . Part Schematics Acquired . | . . . . . . . Parts Built . | . . . . . . . Authchips . | . . . . . . . Time . | . . . . . . . Total Part Build Rating . | . . . . . . . Parts Repaired 2 | . . . . . 2 . Time 104 | . . . . . 104 . Parts Recycled . | . . . . . . . Recycled Matter . | . . . . . . . Retrieved Matter . | . . . . . . . Retrieved Components 3 | . . . . . 3 . Parts Scanalyzed . | . . . . . . . Part Schematics Acquired . | . . . . . . . Parts Damaged . | . . . . . . . Bothacking | -11 -10 -10 -10 -9 -8 -8 ------------ Run | Yrd Mat Min Exi Min Mat Gar Used RIF Installer . | . . . . . . . Robots Hacked 4 | . . . 4 . . . Non-combat 3 | . . . 3 . . . Combat 1 | . . . 1 . . . Robot Hacks Applied 4 | . . . 4 . . . parse_system 4 | . . . 4 . . . Relay Couplers Released 16 | . . . . . . 16 Machine Destruction 16 | . . . . . . 16 Fabnet Peak Effective % . | . . . . . . . Robots Rewired . | . . . . . . . Allies Hacked . | . . . . . . . Hacks Repelled . | . . . . . . . Allies | -11 -10 -10 -10 -9 -8 -8 -------- Run | Yrd Mat Min Exi Min Mat Gar Total Allies . | . . . . . . . Largest Group . | . . . . . . . Highest-Rated Group . | . . . . . . . Highest-Rated Ally . | . . . . . . . Total Orders . | . . . . . . . Ally Attacks . | . . . . . . . Total Damage . | . . . . . . . Kills . | . . . . . . . Allies Corrupted . | . . . . . . . Allies Melted . | . . . . . . . Intel | -11 -10 -10 -10 -9 -8 -8 ------- Run | Yrd Mat Min Exi Min Mat Gar Robot Analysis Total . | . . . . . . . Derelict Logs Recovered 3 | . . 2 . 1 . . Drone Launches . | . . . . . . . Drone Recoveries . | . . . . . . . Exploration | -11 -10 -10 -10 -9 -8 -8 ------------- Run | Yrd Mat Min Exi Min Mat Gar Turns Passed 8281 | 53 1552 1090 1011 467 2389 1719 Spaces Moved 4488 | 37 847 633 620 243 1342 766 Core 6 | 6 . . . . . . Treads 2807 | . 603 633 620 243 170 538 Legs 1675 | 31 244 . . . 1172 228 Wheels . | . . . . . . . Hover . | . . . . . . . Flight . | . . . . . . . Fastest Speed 50 | 50 120 160 160 160 130 130 Average Speed 148 | 108 148 160 160 160 134 149 Slowest Speed 270 | 120 160 160 160 160 250 270 Overloaded Moves . | . . . . . . . Propulsion Burnouts . | . . . . . . . Robots Hopped . | . . . . . . . Cave-ins Triggered . | . . . . . . . Exploration Rate (%) 70 | 3 97 98 83 42 91 79 Regions Visited 6 Branch Regions 3 Pre-discovered Areas 4 | . . 2 1 1 . . Known Exits Taken 2 | . 1 . . . 1 . Unknown Exits Taken 4 | 1 . 1 1 1 . . Scrap Searched 1 | . . 1 . . . . Spaces Dug 2 | . . . 2 . . . Terrain Destroyed 12 | . . . 2 . . 10 Melee 2 | . . . 2 . . . Projectile 1 | . . . . . . 1 AOE 9 | . . . . . . 9 Terrain Rammed . | . . . . . . . Walls Destroyed . | . . . . . . . Machines Disabled . | . . . . . . . Actions | -11 -10 -10 -10 -9 -8 -8 --------- Run | Yrd Mat Min Exi Min Mat Gar Total 5460 | 48 1021 682 632 289 1675 1113 Wait 386 | 1 55 6 4 31 88 201 Move 4482 | 36 846 632 619 242 1341 766 Hop . | . . . . . . . Pick Up 67 | 5 20 8 . . 28 6 Fast Attach 24 | 4 3 1 . . 13 3 Attach 23 | 2 2 . . . 10 9 Detach 13 | . 1 . . . 9 3 Swap 45 | . 14 8 3 . 15 5 Drop 64 | . 17 11 . . 34 2 Fire 349 | . 62 16 . 16 137 118 Melee 6 | . . . 6 . . . Ram . | . . . . . . . Kick . | . . . . . . . Crush 1 | . 1 . . . . . Escape Stasis . | . . . . . . . Rewire . | . . . . . . . Trap . | . . . . . . . Miscellaneous . | . . . . . . . Route ------- -11/Scrapyard -10/Materials (discovered 5 exits: [*Mat x3] / *Min x2) -10/Mines (discovered 3 exits: [*Mat x2] / *Exi) -10/Exiles -9/Mines -8/Materials (discovered 3 exits: [*Fac x2] / Gar) -8/Garrison (discovered 4 exits: [*Mat x4]) History --------- Turn | Location | Event 5 | -11/Scrapyard | Discovered new exit (range 16) 54 | -11/Scrapyard | Entered Materials 216 | -10/Materials | Discovered new exit (range 15) 234 | -10/Materials | Destroyed 7 combat bots 304 | -10/Materials | Build established: Mutant 490 | -10/Materials | Discovered new exit (range 16) 647 | -10/Materials | Discovered new exit (range 11) 713 | -10/Materials | Discovered new exit (range 14) 757 | -10/Materials | Identified exit to Mines 1041 | -10/Materials | Discovered new exit (range 16) 1606 | -10/Materials | Entered Mines 1695 | -10/Mines | Met a Derelict shopkeep closing up shop 1945 | -10/Mines | Learned location of Storage (-7) 2013 | -10/Mines | Deemed a non-threat by the Exiles lab entrance 2013 | -10/Mines | Discovered new exit (range 5) 2201 | -10/Mines | Discovered new exit (range 7) 2234 | -10/Mines | Received a Rocket Launcher from a helpful Derelict 2342 | -10/Mines | Discovered new exit (range 2) 2684 | -10/Mines | Build established: Scavenger-Mutant 2696 | -10/Mines | Entered Exiles 2736 | -10/Exiles | Met 8R-AWN 2767 | -10/Exiles | Met EX-HEX 2891 | -10/Exiles | Met EX-BIN 3014 | -10/Exiles | Met EX-DEC 3055 | -10/Exiles | Build established: Mutant 3118 | -10/Exiles | Visited The Gauntlet 3330 | -10/Exiles | Learned location of Zion (-6) 3684 | -10/Exiles | Discovered new exit (range 14) 3707 | -10/Exiles | Entered Mines 3947 | -9/Mines | Discovered new exit (range 15) 3990 | -9/Mines | Core integrity fell below 50% 4007 | -9/Mines | Build established: Scavenger-Mutant 4108 | -9/Mines | Assembled infested the area 4174 | -9/Mines | Entered Materials 4174 | -8/Materials | Evolved 4 slots: Propulsion x1, Utility x3 4907 | -8/Materials | Build established: Mutant 5355 | -8/Materials | Discovered new exit (range 8) 5891 | -8/Materials | Repaired Imp. Titanium Leg 5952 | -8/Materials | Repaired Adv. Beam Rifle? 6142 | -8/Materials | Discovered new exit (range 3) 6182 | -8/Materials | Identified exit to Garrison 6563 | -8/Materials | Entered Garrison 6586 | -8/Garrison | Core integrity fell below 50% 6665 | -8/Garrison | Triggered checkpoint 6698 | -8/Garrison | Garrison Relay disabled 6781 | -8/Garrison | Triggered checkpoint 6791 | -8/Garrison | Triggered checkpoint 6821 | -8/Garrison | Destroyed 8 combat bots 7017 | -8/Garrison | Triggered checkpoint 7076 | -8/Garrison | Lost 3 parts (2n1w) 7199 | -8/Garrison | Triggered checkpoint 7256 | -8/Garrison | Core integrity fell below 20% 7282 | -8/Garrison | Learned Materials security intel 7295 | -8/Garrison | Garrison Relay disabled 7361 | -8/Garrison | Discovered new exit (range 13) 7507 | -8/Garrison | Triggered checkpoint 7586 | -8/Garrison | Garrison Relay disabled 7682 | -8/Garrison | Discovered new exit (range 8) 7713 | -8/Garrison | Triggered checkpoint 7750 | -8/Garrison | Discovered new exit (range 5) 7893 | -8/Garrison | Triggered checkpoint 8028 | -8/Garrison | Build established: Scavenger-Mutant 8112 | -8/Garrison | Garrison Relay disabled 8216 | -8/Garrison | Discovered new exit (range 8) 8249 | -8/Garrison | Spotted B-75 Beast 8282 | -8/Garrison | Destroyed by B-75 Beast with Magnetic Acceleration Cannon Last Messages --------------- 08061_ S-10 Pest destroyed. 08112_ Garrison Relay disabled. 08112_ Relay Coupler [Swarmer] tumbles out of relay unit. 08112_ Relay Coupler [NC] tumbles out of relay unit. 08112_ Relay Coupler [Brawler] tumbles out of relay unit. 08125_ RIF Installer disabled. 08169_ G-47 Trooper suffers critical hit (Burn). 08169_ Particle Gun melted. 08169_ G-47 Trooper destroyed. 08175_ G-47 Trooper suffers critical hit (Burn). 08175_ Lgt. Nuclear Core melted. 08175_ G-47 Trooper destroyed. 08216_ EXIT=FOUND 08251_ B-75 Beast springs to life. 08257_ B-75 Beast suffers critical hit (Burn). 08258_ B-75 Beast heat short circuits Rnf. Deuterium Engine. 08260_ Adv. Beam Rifle destroyed. 08273_ B-75 Beast suffers critical hit (Burn). 08273_ Imp. Heat Sink destroyed. 08276_ Arm. Treads destroyed. Map ----- +----------------------------------------------------+ | ????????????????????????????????########### ## | | ????????????????????????????????# | | ????????????????????????????????# | | ????????????????????????????????# ######## | | ????????????????????????????????# #??????## ## | | ????????????????????????????????# #??????# ^ ## | | ??????????????????????########### ### ##?## ### | | ??????????????????????#%=% *%[ " # #?? | | ????????????????????###[######### ##### #?# #?? | | ????????????????????# =%#???????# #???????# #?? | | ????????????????????# #???????# ######### #?? | | ????????????????????# #???????# #?? | | ????????????????????###"#???????# #?? | | ??????????????????????#%#???????# ############?? | | ????????????#######???#"#???????# #????????????? | | ????????????#"""" ##### ######??# #????????????? | | ????????????#" #??# #????????????? | | ????????????#""" #######!!!##??# #????????????? | | ????????????#######??????" ""#??# #????????????? | | ??????????????????????????####??# #????????????? | | ???????????###??????????????????# #????????????? | | ????????""""""""????????????????# #????????????? | | ???????"""![!!]!"#??????????????# #????????????? | | ???????"" ############## #????????????? | | ??????????????# ; #????????????? | | ???????????#BB; ;@ % #????????????? | | ??????????????# ##### < #########????????????? | | ??????????????# ????# %%#????????????????????? | | ???????????? ?????#####????????????????????? | | ??????????[=][!!"???????????????????????????????? | | ?????????"""""""????????????????????????????????? | | ?????????#######????????????????????????????????? | | ????????????????????????????????????????????????? | | ????????????????????????????????????????????????? | | ????????????????????????????????????????????????? | | ????????????????????????????????????????????????? | | ????????????????????????????????????????????????? | | ????????????????????????????????????????????????? | | ????????????????????????????????????????????????? | | ????????????????????????????????????????????????? | | ????????????????????????????????????????????????? | | ????????????????????????????????????????????????? | | ????????????????????????????????????????????????? | | ????????????????????????????????????????????????? | | ????????????????????????????????????????????????? | | ????????????????????????????????????????????????? | | ????????????????????????????????????????????????? | | | | | | | +----------------------------------------------------+ Best States ------------- Heat Dissipation 50 Energy Generation 14 Energy Capacity 275 Matter Stores 300 Matter Capacity 300 Sight Range 18 Terrain Scan Density 10 Armor Coverage 150 Evasion (%) 55 Targeting Accuracy 8 Core Analysis 6 Recoil Reduction 3 Offensive Hacking 20 Item Schematics ----------------- None Robot Schematics ------------------ None Fabricated ------------ Nothing Alien Tech Used ----------------- None Achievements -------------- None Challenges ------------ None Game ------ Seed WeaponSmallRail Manual? 0 Play Time 02:00:55 Cumulative 177.6 hours Start 2024.07.30 @ 21:09:56 End 2024.07.30 @ 23:19:46 Sessions 1 Manual Loads 0 Difficulty Rogue Special Mode None Game No. 57 Rogue 57 Adventurer 0 Explorer 0 Win Type - Total 1 Types 1/0/0/0/0/0/0/0/0 Lore% 58 Gallery% 66 Achievement% 49 Wizard Run 0 Options --------- Layout 0 ASCII 0 Keyboard 1 Movement Numpad Keybinds 0 Fullscreen 1 Font 18/X11Bold Map View 76x50 Zoom Use 0% Tactical HUD 1 Map Filters NONE Filters NONE Steam 1 RUN: 972b3ec5-f443-4deb-8ae4-c95305955e88